bitfinex/quotes_ETHUSD_20260203
["timestamp","ask_amount","ask_price","bid_price","bid_amount"]
[1770109630562,7.87149413,2318.3,2317.5,0.001]
[1770109632360,8.9499058,2318.3,2317.5,0.001]
[1770109635188,0.904,2318.5,2317.5,7.01890429]
[1770109635189,9.85378046,2318.5,2317.5,7.01890429]
[1770109635484,7.87149413,2318.9,2317.5,7.01890429]
[1770109636059,7.87259413,2319.1,2317.5,7.01890429]
[1770109636265,8.95060506,2319.1,2317.8,6.99652978]
[1770109636988,7.87259413,2319.1,2317.8,6.99652978]
[1770109637177,8.95060922,2319.1,2317.8,6.99652978]
[1770109638972,7.87259413,2319.1,2318.0,6.92400331]
[1770109639177,8.9506105,2319.1,2318.0,6.92400331]
[1770109641002,8.9506105,2319.1,2318.1,1.07846943]
[1770109642579,7.54289789,2318.8,2317.8,4.31426679]
[1770109642778,0.0011,2318.9,2317.5,0.001]
[1770109642779,7.54289789,2318.6,2317.5,0.001]
[1770109643089,7.54289789,2318.4,2317.5,0.001]
[1770109645099,7.54289789,2318.2,2317.5,0.001]
[1770109646101,1.07837639,2318.3,2317.5,0.001]
[1770109646599,8.62127428,2318.3,2317.5,0.001]
[1770109647701,7.54289789,2318.3,2317.5,0.001]
[1770109647899,7.54289789,2318.6,2317.5,6.68540964]
[1770109649400,1.98220098,2318.7,2317.6,7.74058718]
[1770109650602,9.52509887,2318.7,2317.6,7.74058718]
[1770109651015,8.44689789,2318.7,2317.6,7.74058718]
[1770109655684,8.44689789,2318.7,2317.7,6.51234016]
[1770109655883,9.52509607,2318.7,2317.7,6.51234016]
[1770109656392,8.44689789,2318.7,2317.7,6.51234016]
[1770109658011,8.44689789,2318.7,2317.8,7.54911446]
[1770109658191,7.54289789,2318.7,2317.8,7.54911446]
[1770109658915,0.0011,2318.9,2317.8,7.54911446]
[1770109659086,1.07920308,2318.9,2317.8,7.54911446]
[1770109659282,7.54289789,2318.6,2317.7,0.001]
[1770109659590,7.54289789,2318.6,2317.5,0.001]
[1770109659786,7.54289789,2318.2,2317.2,0.001]
[1770109660013,7.54289789,2317.8,2317.0,0.001]
[1770109660316,7.54289789,2317.6,2317.0,0.001]
[1770109661799,0.80563544,2317.5,2316.9,0.30475987]
[1770109662105,7.54289789,2317.4,2316.9,0.30475987]
[1770109662516,7.54289789,2317.4,2316.9,1.38378634]
[1770109663695,7.54289789,2317.4,2316.9,0.30475987]
[1770109664418,7.54289789,2317.4,2316.9,1.38378739]
[1770109666724,7.54289789,2317.4,2316.9,0.30475987]
[1770109667096,7.54289789,2317.4,2317.1,0.001]
[1770109669721,7.54289789,2318.1,2317.1,0.001]
[1770109669922,7.54289789,2317.9,2317.1,0.001]
[1770109670107,7.54289789,2317.7,2317.1,0.001]
[1770109670615,7.54289789,2317.7,2316.9,0.30475987]
[1770109670818,7.54289789,2317.7,2316.9,0.30375987]
[1770109671010,7.74286338,2317.5,2316.7,0.001]
[1770109671319,7.74286338,2317.3,2316.7,0.001]
[1770109673418,8.82171035,2317.3,2316.7,0.001]
[1770109673923,7.74286338,2317.3,2316.7,0.001]
[1770109675512,7.09005134,2317.5,2316.7,6.44360847]
[1770109676321,7.09005134,2317.9,2316.7,6.44360847]
[1770109676918,8.16845636,2318.3,2316.7,6.44360847]
[1770109677120,0.8049561,2318.2,2316.7,6.44360847]
[1770109677318,7.09005134,2318.3,2316.7,6.44360847]
[1770109677496,8.16845587,2318.3,2316.9,6.41288396]
[1770109678003,7.09005134,2318.3,2316.9,6.41288396]
[1770109679416,7.09005134,2318.3,2317.1,6.38371877]
[1770109679618,0.0011,2317.3,2317.1,6.38371877]
[1770109679820,7.09005134,2318.3,2317.1,6.38371877]
[1770109680198,0.0011,2317.5,2317.1,6.38371877]
[1770109680536,0.0011,2318.5,2317.2,6.36938108]
[1770109680900,8.16944243,2318.5,2317.2,6.36938108]
[1770109681338,8.16944243,2318.5,2317.0,7.43415886]
[1770109681639,7.09005134,2318.3,2317.0,7.43415886]
[1770109681800,7.09005134,2318.3,2317.0,1.07898144]
[1770109682235,7.09005134,2318.1,2317.0,1.07898144]
[1770109682906,7.09005134,2318.4,2317.0,7.40633485]
[1770109683228,7.89688128,2318.3,2317.0,7.40633485]
[1770109683531,7.09005134,2318.3,2317.0,7.40633485]
[1770109683724,8.16844788,2318.3,2317.0,7.40633485]
[1770109684404,7.09005134,2318.3,2317.0,7.40633485]
[1770109684608,0.0011,2318.5,2317.0,7.40633485]
[1770109685124,0.0011,2318.5,2317.2,6.30005686]
[1770109685319,8.16944353,2318.5,2317.2,6.30005686]
[1770109685725,8.16944353,2318.5,2317.3,1.07884175]
[1770109686021,8.16944353,2318.5,2317.3,7.36550033]
[1770109687030,7.09115134,2318.5,2317.3,7.36550033]
[1770109690834,8.16943612,2318.5,2317.3,7.36550033]
[1770109692235,8.16943612,2318.5,2317.5,0.001]
[1770109692533,0.0011,2318.3,2317.5,0.001]
[1770109693333,7.09115134,2318.3,2317.5,0.001]
[1770109695737,0.0011,2318.3,2317.5,6.16181242]
[1770109696539,7.09115134,2318.3,2317.5,0.001]
[1770109697844,7.09115134,2318.3,2317.5,1.07974865]
[1770109700136,0.0011,2318.3,2317.5,6.10505843]
[1770109702837,0.0011,2318.3,2317.6,1.0787021]
[1770109705864,0.0011,2318.3,2317.7,0.001]
[1770109706047,0.0011,2318.1,2317.7,0.001]
[1770109709262,0.0011,2318.3,2317.7,0.001]
[1770109709440,0.0011,2318.3,2317.8,1.07860902]
[1770109710174,6.92619561,2318.5,2317.8,1.07860902]
[1770109710175,0.0011,2318.5,2317.9,5.94979031]
[1770109710339,0.0011,2318.7,2317.9,5.94869031]
[1770109710679,0.81487257,2318.6,2317.9,5.94869031]
[1770109710858,0.0011,2318.9,2318.0,5.93467222]
[1770109711162,0.0011,2319.1,2318.0,2.31188172]
[1770109711344,0.0011,2319.1,2318.1,5.93357222]
[1770109711543,0.0011,2319.1,2318.3,7.01194861]
[1770109712439,6.92619561,2319.1,2318.3,1.07837639]
[1770109713645,6.92619561,2319.1,2318.2,4.31350558]
[1770109716575,6.92619561,2319.1,2318.2,10.18471631]
[1770109718571,0.0011,2318.9,2318.2,10.18471631]
[1770109719291,0.0011,2318.9,2318.3,5.83547756]
[1770109719850,6.92619561,2318.9,2318.2,4.31350558]
[1770109720853,0.0011,2318.9,2318.2,10.12585218]
[1770109721782,6.92619561,2318.9,2318.2,4.31350558]
[1770109721956,8.00433035,2318.9,2318.1,1.98244655]
[1770109722480,6.92619561,2318.9,2318.1,7.78341525]
[1770109724881,0.0011,2318.9,2318.2,5.76763665]
[1770109725986,0.0011,2318.9,2318.3,1.07837639]
[1770109726369,0.0011,2318.9,2318.3,6.83522518]
[1770109730584,7.26417714,2318.9,2318.3,1.07837639]
[1770109731159,7.26417714,2318.9,2318.4,0.001]
[1770109733264,0.0011,2318.9,2318.4,0.001]
[1770109733463,0.0011,2318.9,2318.4,5.66562307]
[1770109734465,0.0011,2319.1,2318.6,5.65498621]
[1770109735471,0.0011,2319.1,2318.5,6.722589]
[1770109737667,0.0011,2319.1,2318.5,1.07828337]
[1770109738068,6.97476273,2319.1,2318.5,1.07828337]
[1770109739370,6.97476273,2319.1,2318.4,0.001]
[1770109740472,6.97476273,2319.1,2318.4,5.59918363]
[1770109741077,6.97476273,2319.1,2318.4,0.001]
[1770109741395,8.0527796,2319.1,2318.4,0.001]
[1770109741694,7.80462186,2319.0,2318.1,1.07943444]
[1770109741875,6.97366273,2318.8,2318.1,1.07943444]
[1770109742078,0.83095913,2318.7,2318.1,1.07943444]
[1770109742279,7.80462186,2318.7,2318.1,1.07943444]
[1770109742475,6.97366273,2319.0,2318.1,1.07943444]
[1770109742683,0.83082719,2318.9,2318.1,6.65219836]
[1770109742866,0.83082719,2318.8,2318.1,6.65219836]
[1770109743193,1.07910549,2319.1,2318.1,1.07943444]
[1770109743194,0.83082719,2318.7,2318.1,1.07943444]
[1770109743502,6.97366273,2318.7,2318.6,0.001]
[1770109743705,7.80434482,2318.7,2318.1,0.001]
[1770109743874,6.97366273,2318.7,2318.1,0.001]
[1770109744075,6.97366273,2318.7,2318.4,0.001]
[1770109744999,6.97366273,2318.5,2317.6,1.07866834]
[1770109745205,6.97366273,2318.3,2317.7,1.15912121]
[1770109745508,6.97366273,2318.3,2317.8,1.07860671]
[1770109745675,6.97366273,2318.3,2317.7,1.15910316]
[1770109746002,7.9017212,2318.2,2317.5,1.07971814]
[1770109746202,6.97366273,2318.0,2317.4,0.001]
[1770109746500,0.92805847,2317.9,2317.4,0.001]
[1770109746698,1.07839085,2318.3,2317.5,1.07872172]
[1770109746874,7.89980976,2318.2,2317.4,1.07976059]
[1770109747202,6.97366273,2318.0,2317.4,1.07976059]
[1770109747400,6.97366273,2318.2,2317.5,1.07871272]
[1770109750719,6.97366273,2318.2,2317.4,0.001]
[1770109753104,6.97366273,2318.5,2317.4,5.57912959]
[1770109753402,6.97366273,2318.5,2317.4,0.001]
[1770109753606,6.97366273,2318.3,2317.4,0.001]
[1770109755587,6.97366273,2318.5,2317.4,5.56467465]
[1770109755797,6.97366273,2318.8,2317.4,5.56467465]
[1770109756111,0.0011,2318.1,2317.7,5.55659451]
[1770109757407,0.0011,2318.1,2317.8,1.07860902]
[1770109758706,0.0011,2318.9,2317.8,6.58406509]
[1770109759278,8.05287953,2318.9,2317.8,6.58406509]
[1770109762501,8.05287953,2318.9,2317.9,7.82625851]
[1770109763211,8.05287953,2318.9,2317.9,13.22588292]
[1770109765211,8.05287953,2318.9,2318.0,1.07851596]
[1770109768027,0.0011,2319.1,2318.6,13.12606055]
[1770109768326,0.34818444,2319.6,2319.0,7.82625851]
[1770109769015,0.34818444,2319.6,2318.9,5.29980204]
[1770109769227,7.99613931,2319.6,2318.4,5.28049695]
[1770109769461,6.57016727,2319.4,2318.3,7.82625851]
[1770109769592,0.0011,2318.9,2318.5,7.82625851]
[1770109769792,0.34818444,2319.6,2318.8,5.26030352]
[1770109770016,6.91835171,2319.6,2318.9,1.07809737]
[1770109770526,6.91835171,2319.6,2318.9,14.1646594]
[1770109770527,0.34818444,2319.6,2318.9,14.1646594]
[1770109772924,7.99615826,2319.6,2318.8,1.07811148]
[1770109773238,7.99615826,2319.6,2318.4,5.20433923]
[1770109773412,6.57016727,2319.4,2318.6,1.07821424]
[1770109773728,6.57016727,2319.4,2318.6,1.07822071]
[1770109773912,7.64807524,2319.4,2318.3,1.07837639]
[1770109776046,7.64807524,2319.4,2318.2,4.31366872]
[1770109776617,7.64807524,2319.4,2318.2,1.07842291]
[1770109776943,6.57016727,2319.2,2318.1,2.26217674]
[1770109777840,6.57016727,2319.0,2318.1,1.35819533]
[1770109778215,1.07809737,2318.9,2318.1,1.35819533]
[1770109778410,7.64826464,2318.9,2318.1,1.35819533]
[1770109778856,7.64826464,2318.9,2318.1,0.27972702]
[1770109779147,7.64826464,2318.9,2318.1,1.35819588]
[1770109779343,6.57016727,2318.9,2318.1,1.35819588]
[1770109780347,6.57016727,2318.7,2318.1,0.27972702]
[1770109780759,6.57016727,2318.7,2318.1,1.35819628]
[1770109781845,6.57016727,2318.7,2318.3,0.001]
[1770109783015,6.57016727,2318.7,2318.1,1.35819547]
[1770109784224,7.64836633,2318.7,2318.1,0.27972702]
[1770109784641,7.64836633,2318.7,2317.8,0.001]
[1770109784844,6.57016727,2318.5,2317.8,0.001]
[1770109785041,6.57016727,2318.3,2317.8,0.001]
[1770109787361,7.64859018,2318.2,2317.8,0.001]
[1770109787853,6.57016727,2318.2,2317.8,0.001]
[1770109788724,6.56936727,2318.2,2317.8,0.001]
[1770109791343,7.64779925,2318.2,2317.8,0.001]
[1770109794638,7.64779925,2318.2,2317.6,0.001]
[1770109796061,7.64779925,2318.2,2317.4,0.001]
[1770109796429,6.79141478,2317.9,2317.4,0.001]
[1770109797831,7.69541478,2317.9,2317.2,0.001]
[1770109798059,6.79141478,2317.7,2317.2,0.001]
[1770109799267,6.79141478,2317.5,2317.2,0.001]
[1770109800357,1.07868858,2317.7,2317.2,0.001]
[1770109800552,7.87010336,2317.7,2317.2,0.001]
[1770109801075,12.14784268,2317.8,2316.9,0.001]
[1770109801076,1.0787952,2317.4,2316.9,0.001]
[1770109801267,6.79141478,2316.9,2316.4,0.001]
[1770109803298,7.87048613,2316.9,2316.4,0.001]
[1770109806390,7.87048613,2316.9,2316.0,0.001]
[1770109806572,7.87048613,2316.9,2315.8,1.07953463]
[1770109806970,7.87048613,2316.9,2315.8,1.07953372]
[1770109807195,6.79141478,2316.3,2315.0,0.32796903]
[1770109807380,6.79141478,2316.3,2314.4,0.22530661]
[1770109807381,6.79141478,2315.9,2314.7,1.08005121]
[1770109807573,6.79141478,2315.9,2314.5,4.32056329]
[1770109807574,7.87095532,2315.8,2314.5,1.08014689]
[1770109807887,7.87095532,2315.8,2314.5,6.53442237]
[1770109808286,6.79141478,2315.8,2314.5,6.53442237]
[1770109808695,6.79141478,2315.8,2314.5,1.08014689]
[1770109809098,6.79141478,2315.8,2314.2,5.44508197]
[1770109809099,6.79141478,2315.6,2314.3,1.08021074]
[1770109809304,6.79141478,2315.6,2314.3,1.08023692]
[1770109809517,6.79141478,2315.4,2314.0,1.08038029]
[1770109809716,6.79141478,2315.2,2314.0,1.08038029]
[1770109811798,1.07986696,2315.1,2314.0,1.08038029]
[1770109812007,8.77621884,2315.3,2314.0,6.49954759]
[1770109812410,6.79141478,2315.2,2314.0,6.49954759]
[1770109813589,0.905,2315.3,2314.0,6.49954759]
[1770109813917,6.79141478,2314.8,2313.5,1.08058815]
[1770109815626,6.79141478,2314.8,2313.5,6.46526436]
[1770109815779,7.87145336,2314.8,2313.5,6.46526436]
[1770109816782,6.79141478,2314.8,2313.5,6.46526436]
[1770109816978,7.87135626,2315.0,2313.5,6.46526436]
[1770109817304,6.79141478,2315.0,2313.5,6.46526436]
[1770109817915,6.79141478,2314.8,2313.5,6.46526436]
[1770109818713,6.79141478,2314.8,2313.5,1.08058815]
[1770109819806,6.79141478,2314.8,2313.3,4.32278858]
[1770109819807,1.08014689,2314.5,2313.3,4.32278858]
[1770109819988,6.79141478,2314.4,2313.3,4.32278858]
[1770109820188,6.79141478,2314.4,2313.3,1.08070721]
[1770109820520,6.79141478,2314.4,2313.2,0.2459]
[1770109820689,1.08014689,2314.5,2312.8,1.08089588]
[1770109820690,6.26696136,2314.2,2312.8,1.08089588]
[1770109820877,6.26696136,2314.0,2313.0,1.08083177]
[1770109821081,6.26696136,2314.0,2313.0,1.08081822]
[1770109821483,6.26696136,2314.0,2312.8,1.08090183]
[1770109821695,6.26696136,2314.0,2312.9,1.0808667]
[1770109822011,6.26696136,2313.8,2312.7,1.08178839]
[1770109822194,1.08041269,2314.0,2312.7,6.41061418]
[1770109822384,1.08041269,2314.0,2313.5,0.001]
[1770109822806,6.26696136,2313.9,2312.7,6.41061418]
[1770109823614,0.1024,2313.6,2312.7,0.0008008]
[1770109823828,8.35629187,2313.5,2312.0,1.08211089]
[1770109824118,6.26696136,2313.0,2312.0,0.0008008]
[1770109824291,1.08080065,2313.1,2312.0,0.0008008]
[1770109824494,8.25274004,2313.2,2312.0,0.0008008]
[1770109824706,6.26696136,2313.1,2312.0,0.0008008]
[1770109825481,6.26696136,2313.4,2312.0,5.30850068]
[1770109826011,6.26696136,2313.2,2312.1,1.08126811]
[1770109826404,4.32265136,2313.4,2312.1,1.08126811]
[1770109826405,1.08067571,2313.4,2312.1,6.38150933]
[1770109827301,6.26696136,2313.3,2312.1,6.38150933]
[1770109827586,6.26696136,2313.3,2312.1,1.08126811]
[1770109827906,6.26696136,2312.4,2311.3,0.30073326]
[1770109828107,7.17296136,2312.7,2311.4,4.32634729]
[1770109828416,6.26696136,2312.6,2311.4,1.08159556]
[1770109828582,6.26696136,2312.4,2311.3,0.0008]
[1770109828785,6.26696136,2312.4,2311.3,1.08243285]
[1770109829298,6.26696136,2312.4,2311.3,1.08243487]
[1770109829498,6.26696136,2312.4,2311.3,1.08244233]
[1770109830014,6.26696136,2312.4,2311.3,0.0008]
[1770109830195,6.26696136,2312.2,2311.3,0.0008]
[1770109830394,1.08117458,2312.3,2310.2,0.1119715]
[1770109830395,0.1024,2311.5,2310.2,0.1119715]
[1770109830719,6.26696136,2311.6,2310.6,1.08193392]
[1770109830720,6.26696136,2311.4,2310.6,1.08193392]
[1770109831090,0.906,2311.5,2310.6,1.08193392]
[1770109831294,6.26696136,2311.8,2310.6,1.08193392]
[1770109831494,0.62542339,2311.9,2310.6,7.83689604]
[1770109832418,7.97378727,2311.9,2310.6,7.83689604]
[1770109832721,6.89238475,2311.9,2310.6,7.83689604]
[1770109832890,0.62542339,2311.9,2310.6,7.83689604]
[1770109834223,0.62542339,2311.9,2310.4,4.3278802]
[1770109834224,6.26696136,2311.6,2310.4,4.3278802]
[1770109834521,1.0814552,2311.7,2310.4,11.08284232]
[1770109834722,0.62742239,2311.8,2310.5,6.75496212]
[1770109834915,0.62742239,2311.8,2310.8,0.001]
[1770109835218,7.97583076,2311.8,2310.8,0.001]
[1770109835938,0.62742239,2311.8,2310.8,6.75596212]
[1770109836239,1.70883791,2311.8,2310.9,1.08182959]
[1770109836394,1.70883362,2311.8,2310.9,1.08182959]
[1770109837108,0.62742239,2311.8,2310.9,1.08182959]
[1770109837311,0.62742239,2311.8,2310.9,7.83679171]
[1770109838530,1.70883175,2311.8,2310.9,1.08182959]
[1770109838828,0.62742239,2311.8,2310.9,1.08182959]
[1770109838991,1.70883148,2311.8,2310.9,1.08182959]
[1770109839896,1.70883763,2311.8,2310.9,1.08182959]
[1770109840420,1.70883763,2311.8,2310.8,0.001]
[1770109841222,7.97579899,2311.8,2310.8,0.001]
[1770109841430,0.62742239,2311.8,2310.8,0.001]
[1770109841595,1.70883186,2311.8,2310.8,0.001]
[1770109843007,1.70883823,2311.8,2310.8,0.001]
[1770109843536,1.70883823,2311.8,2310.8,6.75596212]
[1770109843833,1.70883509,2311.8,2310.8,6.75596212]
[1770109844305,0.62742239,2311.8,2310.8,6.75596212]
[1770109844511,0.62742239,2311.8,2310.9,1.08182959]
[1770109845120,1.70884575,2311.8,2310.9,1.08182959]
[1770109848427,0.0011,2311.6,2310.9,1.08182959]
[1770109849043,0.0011,2311.6,2310.9,7.83679171]
[1770109851656,0.62852239,2311.8,2311.0,6.61055368]
[1770109851953,0.906,2312.1,2311.0,6.41141532]
[1770109852159,6.25011269,2311.8,2310.8,1.08284329]
[1770109852358,7.16234969,2311.7,2310.9,1.08181202]
[1770109852562,0.912237,2311.6,2310.9,1.08181202]
[1770109852726,6.25011269,2312.0,2310.9,7.49322734]
[1770109853063,0.91324349,2311.9,2310.9,7.49322734]
[1770109853227,0.91324349,2311.8,2310.9,7.49322734]
[1770109853429,7.33145775,2312.0,2310.9,7.49322734]
[1770109853662,0.9143429,2311.9,2310.9,7.49322734]
[1770109853862,1.98827548,2312.1,2310.9,7.49322734]
[1770109854167,0.91440518,2312.0,2310.9,7.49322734]
[1770109854325,0.907,2312.1,2310.9,7.49322734]
[1770109854326,1.98826937,2312.1,2310.9,7.49322734]
[1770109854528,0.9149185,2312.0,2310.9,7.49322734]
[1770109854749,1.98826937,2312.1,2310.9,7.49322734]
[1770109854947,0.91491868,2312.0,2310.9,7.49322734]
[1770109855258,1.98826937,2312.1,2310.9,7.49322734]
[1770109855552,0.91550962,2312.0,2310.9,7.49322734]
[1770109855758,0.91550835,2311.9,2310.8,0.001]
[1770109856053,0.91550835,2311.8,2310.9,1.08180636]
[1770109856248,0.91550835,2311.7,2310.9,1.08180636]
[1770109856444,0.91550835,2311.6,2310.9,7.49322168]
[1770109856754,0.91686554,2311.5,2310.9,7.49322168]
[1770109856958,0.1024,2312.0,2310.9,7.49322168]
[1770109857159,0.91685508,2311.9,2310.9,7.49322168]
[1770109857361,0.91685508,2311.8,2310.9,7.49322168]
[1770109857655,0.91685508,2311.7,2310.9,1.08180636]
[1770109857956,0.91685508,2311.6,2310.9,1.08180636]
[1770109858154,7.33146,2312.0,2310.9,7.49322168]
[1770109858461,0.91843799,2311.9,2310.9,7.49322168]
[1770109858638,0.91843799,2311.8,2310.9,7.49322168]
[1770109858840,0.91843799,2311.7,2310.9,7.49322168]
[1770109859157,0.91843799,2311.6,2310.9,7.49322168]
[1770109859462,0.91843799,2311.5,2310.9,7.49322168]
[1770109859660,1.0813848,2311.9,2310.9,7.49322168]
[1770109859859,0.91936111,2311.8,2310.9,7.49322168]
[1770109860050,0.91936111,2311.7,2310.9,7.49322168]
[1770109860231,0.91936111,2311.6,2310.9,7.49322168]
[1770109860431,0.91936111,2311.5,2311.0,0.001]
[1770109860633,0.91936111,2311.4,2311.0,0.001]
[1770109860967,0.0011,2311.6,2311.0,0.001]
[1770109861133,0.91883779,2311.5,2311.0,0.001]
[1770109861458,0.91883779,2311.4,2311.0,0.001]
[1770109861636,0.0011,2311.6,2311.0,0.001]
[1770109861842,0.91942889,2311.5,2311.0,0.001]
[1770109862055,0.91942889,2311.4,2311.0,0.001]
[1770109862363,0.91942889,2311.3,2311.0,0.001]
[1770109862534,0.0011,2311.6,2311.0,0.001]
[1770109862733,0.9188865,2311.5,2310.8,0.001]
[1770109863060,6.25011269,2311.3,2310.5,0.001]
[1770109863261,6.25011269,2311.1,2310.5,0.001]
[1770109863461,7.16899919,2311.0,2310.0,1.08223743]
[1770109863760,8.25082878,2310.9,2310.0,1.08224588]
[1770109863932,0.9188865,2310.8,2309.9,1.08307089]
[1770109864133,4.32731836,2311.0,2309.9,0.0008]
[1770109864134,0.9188865,2310.7,2309.9,0.0008]
[1770109864334,1.08171054,2311.2,2310.2,7.6055096]
[1770109864559,1.08171054,2311.2,2310.2,1.19409428]
[1770109864560,0.91673437,2311.1,2310.2,1.19409428]
[1770109864760,0.91673437,2311.0,2310.2,1.19409428]
[1770109864952,1.08173023,2311.2,2310.2,7.60554286]
[1770109865133,0.91681256,2311.1,2310.2,7.60554286]
[1770109865329,1.08173023,2311.2,2310.2,7.60554286]
[1770109865658,6.62317868,2311.6,2310.3,6.41141532]
[1770109865659,0.0011,2311.6,2310.3,6.41141532]
[1770109865859,1.08260315,2311.6,2310.3,6.41141532]
[1770109866061,0.0011,2311.6,2310.3,6.41141532]
[1770109866836,0.0011,2311.8,2310.7,6.41141532]
[1770109867569,0.0011,2311.8,2311.0,1.08178277]
[1770109867865,0.0011,2311.8,2311.1,6.41141532]
[1770109868842,0.0011,2311.8,2310.9,4.32713111]
[1770109868843,6.25121269,2311.8,2310.6,1.08196729]
[1770109869038,6.25121269,2311.8,2310.2,0.1119715]
[1770109869039,0.1024,2311.3,2310.2,0.1119715]
[1770109869237,6.25011269,2311.4,2310.6,1.081964]
[1770109869442,6.25011269,2311.4,2310.6,1.08196974]
[1770109869671,1.08164236,2311.3,2310.3,1.08211054]
[1770109869880,1.08164236,2311.3,2310.2,4.44041369]
[1770109869881,7.33175505,2311.3,2310.2,1.19410337]
[1770109870062,7.33175505,2311.3,2310.2,0.1119715]
[1770109870862,6.35251269,2311.2,2310.2,0.1119715]
[1770109871075,6.35251269,2311.2,2310.2,1.19412784]
[1770109871274,6.35251269,2311.2,2310.2,0.1119715]
[1770109871988,7.33184865,2311.1,2310.2,0.1119715]
[1770109872782,6.25011269,2310.7,2309.6,0.001]
[1770109872957,0.907,2310.6,2310.4,0.001]
[1770109873305,0.907,2310.6,2309.6,1.08340381]
[1770109873306,0.907,2310.6,2309.6,1.08340618]
[1770109873587,0.907,2310.6,2310.1,0.001]
[1770109873889,1.08201687,2310.5,2310.1,0.001]
[1770109874396,6.25011269,2310.4,2308.3,0.907]
[1770109874731,6.25011269,2310.4,2307.6,4.549]
[1770109874732,15.74078742,2308.4,2306.2,3.53457189]
[1770109874879,15.74078742,2308.4,2301.7,7.07298694]
[1770109874880,17.491333,2302.5,2301.7,7.07298694]
[1770109875077,0.907,2302.7,2301.7,7.94510147]
[1770109875273,0.907,2302.7,2301.8,7.19243871]
[1770109875473,18.86677029,2301.8,2301.7,1.08614074]
[1770109875700,17.66900213,2301.4,2301.2,1.0863897]
[1770109875902,1.30621175,2301.9,2301.2,1.0863897]
[1770109876106,16.46328434,2302.7,2301.4,6.41141532]
[1770109876309,16.46328434,2302.7,2301.4,5.36555252]
[1770109876679,3.70742838,2301.6,2301.4,5.36555252]
[1770109877080,7.41485677,2302.4,2301.2,1.0863897]
[1770109877309,0.907,2302.3,2301.2,1.0863897]
[1770109877616,7.41485677,2302.6,2301.2,1.0863897]
[1770109877811,1.10521711,2301.9,2301.4,1.08629529]
[1770109877979,0.88405125,2301.8,2301.4,1.08629529]
[1770109878308,7.41485677,2302.6,2300.4,0.003]
[1770109878309,2.21012814,2302.0,2300.4,0.003]
[1770109878508,1.00106883,2302.6,2300.4,0.003]
[1770109878509,0.908,2301.7,2300.5,4.34684919]
[1770109878710,6.25011269,2302.2,2301.3,1.08632153]
[1770109878886,6.25011269,2302.0,2300.7,4.34645899]
[1770109879086,6.25011269,2302.0,2301.2,1.08636625]
[1770109879281,6.25011269,2302.5,2300.0,6.41141532]
[1770109879486,6.25011269,2302.5,2298.6,1.30511994]
[1770109879487,6.25011269,2302.2,2299.4,6.41141532]
[1770109879702,7.26051269,2302.1,2299.8,4.34804845]
[1770109880008,7.26051269,2302.1,2299.5,6.41141532]
[1770109880009,0.1024,2301.9,2299.7,6.41141532]
[1770109880215,10.30063931,2301.9,2299.7,6.41141532]
[1770109880398,6.99401216,2302.0,2299.5,4.34858236]
[1770109880399,10.30063931,2301.6,2299.5,1.08719094]
[1770109880604,0.1024,2301.5,2299.5,9.89080954]
[1770109880811,11.20863931,2301.4,2299.2,0.61830504]
[1770109881030,10.30063931,2301.4,2299.4,1.08721917]
[1770109881214,5.0,2301.3,2299.3,9.89080954]
[1770109881387,5.0,2301.3,2298.6,0.908]
[1770109881388,10.30063931,2301.0,2299.1,1.08736595]
[1770109881582,10.30063931,2301.0,2297.6,2.21545918]
[1770109881583,0.1024,2301.2,2299.5,1.08717636]
[1770109881787,1.08643692,2301.1,2299.2,7.77080954]
[1770109881984,6.47950819,2301.2,2299.2,7.77080954]
[1770109882734,4.38169496,2301.1,2299.2,7.77080954]
[1770109883233,0.679107,2301.0,2299.2,7.27130954]
[1770109883715,0.679107,2301.0,2299.1,1.08738201]
[1770109883716,4.38169496,2300.9,2299.1,1.08738201]
[1770109883916,1.08657858,2300.8,2299.0,9.89080954]
[1770109884396,4.38169496,2300.7,2299.0,9.89080954]
[1770109884819,4.38169496,2300.7,2298.8,1.08752392]
[1770109885008,0.1024,2300.6,2298.8,1.08752392]
[1770109885315,4.38169496,2300.5,2298.8,10.97833346]
[1770109885516,4.38169496,2300.5,2299.4,0.001]
[1770109885718,0.67910701,2300.4,2299.4,0.001]
[1770109886391,0.1024,2300.2,2299.1,0.001]
[1770109886591,4.38169496,2300.1,2299.1,0.001]
[1770109886817,0.67910701,2300.4,2299.1,9.89180954]
[1770109887119,5.06080197,2300.4,2299.1,9.89180954]
[1770109888303,5.06080197,2300.4,2299.2,10.97814426]
[1770109888706,0.67910701,2300.4,2299.2,10.97814426]
[1770109889020,10.30063931,2302.4,2299.4,9.55890164]
[1770109889318,11.38648418,2302.4,2300.0,9.89080954]
[1770109889489,10.30063931,2302.4,2300.0,9.89080954]
[1770109889912,1.08703307,2302.2,2300.0,9.89080954]
[1770109890112,0.0011,2302.2,2300.0,9.89080954]
[1770109890427,0.0011,2302.2,2300.6,9.82287621]
[1770109890627,0.0011,2302.2,2300.6,10.66502621]
[1770109890829,0.0011,2302.2,2300.1,10.9777188]
[1770109891121,0.0011,2302.2,2300.3,9.89080954]
[1770109892100,0.0011,2302.2,2300.6,9.89080954]
[1770109892300,0.0011,2302.2,2300.7,1.0866258]
[1770109892621,0.0011,2302.2,2300.7,10.97743534]
[1770109892784,10.30063931,2304.2,2300.8,9.89080954]
[1770109893115,10.30063931,2304.2,2301.3,9.89080954]
[1770109893116,10.30063931,2304.0,2301.3,9.89080954]
[1770109893317,10.30063931,2304.0,2301.5,9.89080954]
[1770109893486,10.30063931,2303.8,2301.5,9.89080954]
[1770109893898,10.30063931,2303.8,2301.8,19.44971118]
[1770109894098,1.08502235,2304.1,2301.9,9.89080954]
[1770109894397,4.3400894,2304.3,2302.3,9.89080954]
[1770109894592,1.08492817,2304.3,2302.4,9.89080954]
[1770109894790,11.69669685,2304.4,2302.4,9.89080954]
[1770109894990,1.39605754,2304.4,2302.4,9.89080954]
[1770109895202,1.39605754,2304.4,2302.9,9.89080954]
[1770109895203,0.31116074,2304.4,2302.9,9.89080954]
[1770109895424,0.31116074,2304.4,2303.0,0.91]
[1770109895594,0.31116074,2304.4,2303.1,9.89080954]
[1770109895796,1.0848188,2304.6,2303.2,0.91]
[1770109895989,1.08477275,2304.7,2303.1,9.89080954]
[1770109896190,1.08477275,2304.7,2303.1,10.80080954]
[1770109896817,10.40303931,2305.3,2303.2,1.08544633]
[1770109897317,10.30063931,2305.3,2303.2,1.08544633]
[1770109897511,10.30063931,2305.1,2303.2,1.08544633]
[1770109898593,10.30063931,2304.9,2303.2,1.08544633]
[1770109898817,11.38533212,2304.8,2303.0,4.34178534]
[1770109899025,11.38533212,2304.8,2303.0,1.08554059]